bitfinex-derivatives/quotes_BTCF0:USTF0_20250509
["timestamp","ask_amount","ask_price","bid_price","bid_amount"]
[1746774867469,0.2915257,103570.0,103560.0,0.455]
[1746774867668,0.36206906,103570.0,103560.0,0.455]
[1746774867874,0.2614257,103570.0,103560.0,0.455]
[1746774868281,0.33196906,103570.0,103560.0,0.455]
[1746774869183,0.29936906,103570.0,103560.0,0.455]
[1746774869382,0.2288257,103570.0,103560.0,0.455]
[1746774869584,0.29936906,103570.0,103560.0,0.455]
[1746774869775,0.2288257,103570.0,103560.0,0.455]
[1746774869975,0.29936906,103570.0,103560.0,0.455]
[1746774870281,0.2288257,103570.0,103560.0,0.455]
[1746774870782,0.29936906,103570.0,103560.0,0.455]
[1746774871082,0.2288257,103570.0,103560.0,0.455]
[1746774871283,0.26806906,103570.0,103560.0,0.455]
[1746774871484,0.1975257,103570.0,103560.0,0.46970376]
[1746774871885,0.26806906,103570.0,103560.0,0.46970376]
[1746774872073,0.1975257,103570.0,103560.0,0.46970376]
[1746774872678,0.26806906,103570.0,103560.0,0.46970376]
[1746774873686,0.2283257,103570.0,103560.0,0.46970376]
[1746774873887,0.29886906,103570.0,103560.0,0.46970376]
[1746774874285,0.26806906,103570.0,103560.0,0.66283816]
[1746774874485,0.26806906,103570.0,103560.0,0.46970376]
[1746774875191,0.26806906,103570.0,103560.0,0.66283816]
[1746774875382,0.19864035,103570.0,103560.0,0.66283816]
[1746774875778,0.30128371,103570.0,103560.0,0.68640816]
[1746774875983,0.23074035,103570.0,103560.0,0.68640816]
[1746774876184,0.30128371,103570.0,103560.0,0.68640816]
[1746774877797,0.23074035,103570.0,103560.0,0.68640816]
[1746774877998,0.30128371,103570.0,103560.0,0.68640816]
[1746774878200,0.23074035,103570.0,103560.0,0.68640816]
[1746774878495,0.19879019,103570.0,103560.0,0.75695152]
[1746774879295,0.1931157,103570.0,103560.0,0.75695152]
[1746774879498,0.1931157,103570.0,103560.0,0.68640816]
[1746774879983,0.26365906,103570.0,103560.0,0.68640816]
[1746774880393,0.1931157,103570.0,103560.0,0.68640816]
[1746774880697,0.19413374,103570.0,103560.0,0.68640816]
[1746774880897,0.2646771,103570.0,103560.0,0.68640816]
[1746774881198,0.19413374,103570.0,103560.0,0.68640816]
[1746774881592,0.1941684,103570.0,103560.0,0.68640816]
[1746774882596,0.19420306,103570.0,103560.0,0.68640816]
[1746774883698,0.19423772,103570.0,103560.0,0.68640816]
[1746774884798,0.1931157,103570.0,103560.0,0.68640816]
[1746774884998,0.19427238,103570.0,103560.0,0.68640816]
[1746774886000,0.19430704,103570.0,103560.0,0.68640816]
[1746774887001,0.19440416,103570.0,103560.0,0.68640816]
[1746774888402,0.22770416,103570.0,103560.0,0.68640816]
[1746774889302,0.38770416,103570.0,103560.0,0.68640816]
[1746774890094,0.45824752,103570.0,103560.0,0.68640816]
[1746774890295,0.42494752,103570.0,103560.0,0.68640816]
[1746774890706,0.35440416,103570.0,103560.0,0.68640816]
[1746774890997,0.38470416,103570.0,103560.0,0.68640816]
[1746774891197,0.45524752,103570.0,103560.0,0.68640816]
[1746774891400,0.38470416,103570.0,103560.0,0.68640816]
[1746774892117,0.22470416,103570.0,103560.0,0.68640816]
[1746774893018,0.29524752,103570.0,103560.0,0.68640816]
[1746774893920,0.32654752,103570.0,103560.0,0.68640816]
[1746774894219,0.48654752,103570.0,103560.0,0.68640816]
[1746774895116,0.48654752,103570.0,103560.0,0.49327376]
[1746774895311,0.51954752,103570.0,103560.0,0.68640816]
[1746774895616,0.44900416,103570.0,103560.0,0.68640816]
[1746774896018,0.51954752,103570.0,103560.0,0.68640816]
[1746774896423,0.51954752,103570.0,103560.0,0.6717044]
[1746774897123,0.35954752,103570.0,103560.0,0.6717044]
[1746774897319,0.28900416,103570.0,103560.0,0.6717044]
[1746774897624,0.35954752,103570.0,103560.0,0.6717044]
[1746774898123,0.51954752,103570.0,103560.0,0.6766644]
[1746774899825,0.44900416,103570.0,103560.0,0.6766644]
[1746774900016,0.51954752,103570.0,103560.0,0.6766644]
[1746774900626,0.44905099,103570.0,103560.0,0.69176041]
[1746774901126,0.41609782,103570.0,103560.0,0.69176041]
[1746774901719,0.41126674,103570.0,103560.0,0.69176041]
[1746774902728,0.41131357,103570.0,103560.0,0.69176041]
[1746774903323,0.48185693,103570.0,103560.0,0.69176041]
[1746774903527,0.51285693,103570.0,103560.0,0.69176041]
[1746774903722,0.44231357,103570.0,103560.0,0.69176041]
[1746774904028,0.51290376,103570.0,103560.0,0.69176041]
[1746774905015,0.51295059,103570.0,103560.0,0.69176041]
[1746774906016,0.51295059,103570.0,103560.0,0.49862601]
[1746774906222,0.51307615,103570.0,103560.0,0.49862601]
[1746774906424,0.51307615,103570.0,103560.0,0.69176041]
[1746774907819,0.51320171,103570.0,103560.0,0.69176041]
[1746774908022,0.44265835,103570.0,103560.0,0.69176041]
[1746774908329,0.51332727,103570.0,103560.0,0.69176041]
[1746774908529,0.44278391,103570.0,103560.0,0.69176041]
[1746774909222,0.35332727,103570.0,103560.0,0.69176041]
[1746774910128,0.51332727,103570.0,103560.0,0.69176041]
[1746774911024,0.51345283,103570.0,103560.0,0.69176041]
[1746774911829,0.44290947,103570.0,103560.0,0.69176041]
[1746774912017,0.51345283,103570.0,103560.0,0.69176041]
[1746774912218,0.35345283,103570.0,103560.0,0.69176041]
[1746774912428,0.35345283,103570.0,103560.0,0.49862601]
[1746774912728,0.35345283,103570.0,103560.0,0.40442601]
[1746774912933,0.35345283,103570.0,103560.0,0.43632601]
[1746774913436,0.44290947,103570.0,103560.0,0.43632601]
[1746774913733,0.51345283,103570.0,103560.0,0.43632601]
[1746774914030,0.51142798,103570.0,103560.0,0.43632601]
[1746774914223,0.51350877,103570.0,103560.0,0.43632601]
[1746774914730,0.44296541,103570.0,103560.0,0.43632601]
[1746774914931,0.51350877,103570.0,103560.0,0.43632601]
[1746774917130,0.44296541,103570.0,103560.0,0.43632601]
[1746774917331,0.51350877,103570.0,103560.0,0.43632601]
[1746774917632,0.44296541,103570.0,103560.0,0.43632601]
[1746774917831,0.51350877,103570.0,103560.0,0.43632601]
[1746774918834,0.51362624,103570.0,103560.0,0.43632601]
[1746774920134,0.51362624,103570.0,103560.0,0.43136601]
[1746774921935,0.51362624,103570.0,103560.0,0.49336601]
[1746774922136,0.51362624,103570.0,103560.0,0.46266601]
[1746774922328,0.44320035,103570.0,103560.0,0.46266601]
[1746774922527,0.51374371,103570.0,103560.0,0.44757]
[1746774922937,0.51386118,103570.0,103560.0,0.44757]
[1746774923138,0.51386118,103570.0,103560.0,0.41627]
[1746774923832,0.51386118,103570.0,103550.0,0.36576]
[1746774923833,0.1931344,103560.0,103550.0,0.36576]
[1746774924024,0.43005432,103560.0,103550.0,0.39816]
[1746774924229,0.59005432,103560.0,103550.0,0.41284644]
[1746774924731,0.59956316,103560.0,103550.0,0.41284644]
[1746774924931,0.59011763,103560.0,103550.0,0.41384644]
[1746774925238,0.59011763,103560.0,103550.0,0.41484644]
[1746774925847,0.59018094,103560.0,103550.0,0.41484644]
[1746774926846,0.59018094,103560.0,103550.0,0.40016]
[1746774927031,0.59023967,103560.0,103550.0,0.40016]
[1746774928343,0.44915295,103560.0,103550.0,0.40016]
[1746774928639,0.59023967,103560.0,103550.0,0.40016]
[1746774930837,0.59023967,103560.0,103550.0,0.3952]
[1746774931234,0.59023967,103560.0,103550.0,0.3942]
[1746774931441,0.59123967,103560.0,103550.0,0.3942]
[1746774931637,0.59123967,103560.0,103550.0,0.0324]
[1746774935945,0.59364967,103560.0,103550.0,0.0324]
[1746774936744,0.66419303,103560.0,103550.0,0.0324]
[1746774936944,0.59364967,103560.0,103550.0,0.0324]
[1746774941251,0.193153,103550.0,103540.0,0.4238]
[1746774941444,0.287353,103550.0,103540.0,0.4238]
[1746774941746,0.42843972,103550.0,103540.0,0.4238]
[1746774942141,0.59105827,103550.0,103540.0,0.4238]
[1746774942449,0.59105827,103550.0,103540.0,0.4258]
[1746774943441,0.59105827,103550.0,103530.0,0.0069018]
[1746774943442,0.1931717,103540.0,103530.0,0.0069018]
[1746774943636,0.78655842,103540.0,103530.0,0.0069018]
[1746774944349,0.94917697,103540.0,103530.0,0.0069018]
[1746774944547,0.94917697,103540.0,103530.0,0.0384018]
[1746774945249,0.87863361,103540.0,103530.0,0.0384018]
[1746774945654,0.87863361,103540.0,103530.0,0.0394018]
[1746774946042,0.94917697,103540.0,103530.0,0.0394018]
[1746774946745,0.94917697,103540.0,103530.0,0.0344318]
[1746774947949,0.94917697,103540.0,103530.0,0.0039318]
[1746774948645,1.62827697,103540.0,103530.0,0.0039318]
[1746774949351,1.62827697,103540.0,103530.0,0.01660675]
[1746774949852,1.48719025,103540.0,103530.0,0.01660675]
[1746774950056,1.62827697,103540.0,103530.0,0.01660675]
[1746774950439,1.62827697,103540.0,103530.0,0.04740675]
[1746774951654,1.48719025,103540.0,103530.0,0.04740675]
[1746774951954,1.62827697,103540.0,103530.0,0.04740675]
[1746774952143,1.62827697,103540.0,103530.0,0.01660675]
[1746774952548,1.62827697,103540.0,103530.0,0.04980675]
[1746774953653,0.84171855,103540.0,103530.0,0.67434041]
[1746774953848,0.16261855,103540.0,103530.0,0.70454041]
[1746774954255,0.35579025,103540.0,103530.0,0.70454041]
[1746774954555,0.35579025,103540.0,103530.0,0.63399705]
[1746774954756,0.35579025,103540.0,103530.0,0.70454041]
[1746774955156,0.35579025,103540.0,103530.0,0.68993366]
[1746774959467,0.35579025,103540.0,103530.0,0.4262]
[1746774959468,0.42633361,103540.0,103530.0,0.4262]
[1746774959653,0.49203361,103540.0,103530.0,0.63423717]
[1746774959958,0.42149025,103540.0,103530.0,0.63423717]
[1746774960656,0.38899025,103540.0,103530.0,0.63323717]
[1746774960860,0.38899025,103540.0,103530.0,0.64020717]
[1746774961049,0.38899025,103540.0,103530.0,0.44701687]
[1746774961258,0.52413361,103540.0,103530.0,0.08521687]
[1746774961464,0.52413361,103540.0,103530.0,0.08721687]
[1746774962056,0.45359025,103540.0,103530.0,0.07237]
[1746774962354,0.52413361,103540.0,103530.0,0.07237]
[1746774962556,0.59467697,103540.0,103530.0,0.07037]
[1746774962756,0.59467697,103540.0,103530.0,0.04017]
[1746774962957,0.59467697,103540.0,103530.0,0.05481638]
[1746774963158,0.52413361,103540.0,103530.0,0.05481638]
[1746774963766,0.52413361,103540.0,103530.0,0.05281638]
[1746774964761,0.52413361,103540.0,103530.0,0.03817]
[1746774965465,0.95547697,103540.0,103530.0,0.03817]
[1746774966053,0.95547697,103540.0,103530.0,0.00497]
[1746774966459,0.1931903,103530.0,103520.0,0.04674345]
[1746774966663,1.36853366,103530.0,103520.0,0.04674345]
[1746774967065,1.2979903,103530.0,103520.0,0.04674345]
[1746774967366,1.53356221,103530.0,103520.0,0.04529456]
[1746774967868,1.53356221,103530.0,103520.0,0.04729456]
[1746774968071,1.53356221,103530.0,103520.0,0.06239865]
[1746774968360,1.46301885,103530.0,103520.0,0.06439865]
[1746774968565,1.53356221,103530.0,103520.0,0.06439865]
[1746774968755,1.46301885,103530.0,103520.0,0.06439865]
[1746774968961,1.53356221,103530.0,103520.0,0.06439865]
[1746774970660,1.53356221,103530.0,103520.0,0.03339865]
[1746774971062,1.53356221,103530.0,103520.0,0.06379865]
[1746774971466,1.60410557,103530.0,103520.0,0.03339865]
[1746774971967,1.53356221,103530.0,103520.0,0.03339865]
[1746774972167,1.60410557,103530.0,103520.0,0.03339865]
[1746774972762,1.53356221,103530.0,103520.0,0.03339865]
[1746774972963,1.60410557,103530.0,103520.0,0.03339865]
[1746774973164,1.53356221,103530.0,103520.0,0.03339865]
[1746774973565,1.53356221,103530.0,103520.0,0.06499865]
[1746774974360,1.53356221,103530.0,103520.0,0.03339865]
[1746774974860,1.56566221,103530.0,103520.0,0.03339865]
[1746774975258,1.63620557,103530.0,103520.0,0.03339865]
[1746774976062,1.64591161,103530.0,103520.0,0.03339865]
[1746774978976,1.57536825,103530.0,103520.0,0.03339865]
[1746774980073,1.57536825,103530.0,103520.0,0.06389865]
[1746774983575,1.57536825,103530.0,103520.0,0.03339865]
[1746774984675,1.64591161,103530.0,103520.0,0.03339865]
[1746774984867,1.57536825,103530.0,103520.0,0.03339865]
[1746774985667,1.64591161,103530.0,103520.0,0.03339865]
[1746774985965,1.57536825,103530.0,103520.0,0.03339865]
[1746774986472,1.57536825,103530.0,103520.0,0.06499865]
[1746774987267,1.64591161,103530.0,103520.0,0.06499865]
[1746774987468,1.64591161,103530.0,103520.0,0.03339865]
[1746774987670,1.57536825,103530.0,103520.0,0.03339865]
[1746774987870,1.57536825,103530.0,103520.0,0.01829456]
[1746774988169,1.50482489,103530.0,103520.0,0.05109456]
[1746774988374,1.57536825,103530.0,103520.0,0.05109456]
[1746774988973,1.50482489,103530.0,103520.0,0.05109456]
[1746774989175,1.57536825,103530.0,103520.0,0.05109456]
[1746774989977,1.57536825,103530.0,103520.0,0.06596144]
[1746774991576,1.64591161,103530.0,103520.0,0.06596144]
[1746774991780,1.64591161,103530.0,103520.0,0.03316144]
[1746774992981,1.64591161,103530.0,103520.0,0.06496144]
[1746774993580,1.57536825,103530.0,103520.0,0.06496144]
[1746774993781,1.56566221,103530.0,103520.0,0.06496144]
[1746774993979,1.03731885,103530.0,103520.0,0.4963048]
[1746774994183,0.87731885,103530.0,103520.0,0.5596048]
[1746774994487,0.97906221,103530.0,103520.0,0.47419456]
[1746774994684,0.94786221,103530.0,103520.0,0.47419456]
[1746774995181,1.10786221,103530.0,103520.0,0.47419456]
[1746774995484,1.10786221,103530.0,103520.0,0.48900302]
[1746774995683,1.14488748,103530.0,103520.0,0.48900302]
[1746774995891,1.20668748,103530.0,103520.0,0.48900302]
[1746774997080,1.09911885,103530.0,103520.0,0.48900302]
[1746774997981,1.12981885,103530.0,103520.0,0.48900302]
[1746774998884,1.23738748,103530.0,103520.0,0.48900302]
[1746774999188,1.12981885,103530.0,103520.0,0.48900302]
[1746775002190,1.23738748,103530.0,103520.0,0.48900302]
[1746775003994,1.12981885,103530.0,103520.0,0.48900302]
[1746775004192,1.23738748,103530.0,103520.0,0.48900302]
[1746775004802,1.12981885,103530.0,103520.0,0.48900302]
[1746775005093,1.23738748,103530.0,103520.0,0.48900302]
[1746775006093,1.12981885,103530.0,103520.0,0.48900302]
[1746775006592,1.23738748,103530.0,103520.0,0.48700302]
[1746775006791,1.12981885,103530.0,103520.0,0.48700302]
[1746775007093,1.1249859,103530.0,103520.0,0.12420302]
[1746775007393,1.1249859,103530.0,103520.0,0.48500302]
[1746775007595,1.1249859,103530.0,103520.0,0.12420302]
[1746775007797,1.1249859,103530.0,103520.0,0.48500302]
[1746775007981,1.23255453,103530.0,103520.0,0.12420302]
[1746775008187,1.1249859,103530.0,103520.0,0.12420302]
[1746775008390,1.23255453,103530.0,103520.0,0.12420302]
[1746775009089,1.1249859,103530.0,103520.0,0.12420302]
[1746775009388,1.1249859,103530.0,103520.0,0.48500302]
[1746775009695,1.1249859,103530.0,103520.0,0.48700302]
[1746775009892,1.23255453,103530.0,103520.0,0.48700302]
[1746775010395,1.23255453,103530.0,103520.0,0.48900302]
[1746775015603,1.23255453,103530.0,103520.0,0.68221202]
[1746775015903,1.23255453,103530.0,103520.0,0.48900302]
[1746775016403,1.1249859,103530.0,103520.0,0.48900302]
[1746775016607,1.23255453,103530.0,103520.0,0.48900302]
[1746775016903,1.1249859,103530.0,103520.0,0.48900302]
[1746775017091,1.23255453,103530.0,103520.0,0.48900302]
[1746775017500,1.1249859,103530.0,103520.0,0.48900302]
[1746775017900,1.19557859,103530.0,103520.0,0.48900302]
[1746775018796,1.1249859,103530.0,103520.0,0.48900302]
[1746775018996,1.19557859,103530.0,103520.0,0.48900302]
[1746775019599,1.19557859,103530.0,103520.0,0.68221202]
[1746775020397,1.1249859,103530.0,103520.0,0.68221202]
[1746775020597,1.19557859,103530.0,103520.0,0.68221202]
[1746775021001,1.1249859,103530.0,103520.0,0.68221202]
[1746775021206,1.19557859,103530.0,103520.0,0.68221202]
[1746775021905,0.25752855,103530.0,103520.0,0.61891202]
[1746775022104,0.6791,103550.0,103540.0,0.1931717]
[1746775022405,0.18830799,103560.0,103550.0,0.193153]
[1746775022594,0.32240068,103560.0,103550.0,0.616953]
[1746775022796,0.75379337,103560.0,103550.0,0.0302]
[1746775023109,0.193153,103550.0,103540.0,0.03517]
[1746775023403,0.649453,103550.0,103540.0,0.05027198]
[1746775023594,0.72004569,103550.0,103540.0,0.05027198]
[1746775023798,0.71904569,103550.0,103540.0,0.05027198]
[1746775024199,0.87904569,103550.0,103540.0,0.05027198]
[1746775024599,0.87904569,103550.0,103540.0,0.02007198]
[1746775024999,0.808453,103550.0,103540.0,0.02007198]
[1746775025301,0.87904569,103550.0,103540.0,0.02007198]
[1746775025711,0.9159899,103550.0,103540.0,0.02007198]
[1746775028209,0.808453,103550.0,103540.0,0.01510198]
[1746775028410,0.9169899,103550.0,103540.0,0.01510198]
[1746775028812,0.9169899,103550.0,103540.0,0.04770198]
[1746775029213,0.9169899,103550.0,103540.0,0.01510198]
[1746775036116,0.9169899,103550.0,103540.0,0.04520198]
[1746775037519,0.809453,103550.0,103540.0,0.04520198]
[1746775037713,0.9169899,103550.0,103540.0,0.04520198]
[1746775038115,0.9159899,103550.0,103540.0,0.04520198]
[1746775038525,0.808453,103550.0,103540.0,0.04520198]
[1746775038819,0.9159899,103550.0,103540.0,0.04520198]
[1746775039220,0.9169899,103550.0,103540.0,0.04520198]
[1746775043617,0.5561899,103550.0,103540.0,0.40600198]
[1746775043817,0.5561899,103550.0,103540.0,0.10970198]
[1746775044311,0.5551899,103550.0,103540.0,0.10970198]
[1746775044516,0.448653,103550.0,103540.0,0.30287368]
[1746775044819,0.417653,103550.0,103540.0,0.30287368]
[1746775045027,0.384753,103550.0,103540.0,0.30287368]
[1746775045321,0.224753,103550.0,103540.0,0.66367368]
[1746775045519,0.224753,103550.0,103540.0,0.66864368]
[1746775046610,0.193153,103550.0,103540.0,0.67064368]
[1746775047414,0.193153,103550.0,103540.0,0.67264368]
[1746775048015,0.18832138,103550.0,103540.0,0.87675658]
[1746775049122,0.18832138,103550.0,103540.0,1.03675658]
[1746775049320,0.18832138,103550.0,103540.0,0.92921968]
[1746775049623,0.00241,103560.0,103550.0,0.193153]
[1746775049828,0.1955444,103560.0,103550.0,0.618153]
[1746775050124,0.1955444,103560.0,103550.0,0.63325498]
[1746775051112,0.1955444,103560.0,103550.0,0.64307609]
[1746775052118,0.1955444,103560.0,103550.0,0.91061299]
[1746775053220,0.00241,103560.0,103550.0,0.84718099]
[1746775053514,0.1955444,103560.0,103550.0,2.34718099]
[1746775053723,0.00241,103560.0,103550.0,2.34718099]
[1746775054122,0.1955444,103560.0,103550.0,2.34718099]
[1746775054528,0.1955444,103560.0,103550.0,2.37718099]
[1746775055028,0.1955444,103560.0,103550.0,2.26964409]
[1746775055232,0.1955444,103560.0,103550.0,2.27254409]
[1746775055928,0.2286444,103560.0,103550.0,2.27254409]
[1746775056518,0.2286444,103560.0,103550.0,2.17597609]
[1746775057223,0.3886444,103560.0,103550.0,2.17597609]
[1746775057425,0.4518444,103560.0,103550.0,2.17597609]
[1746775058131,0.2918444,103560.0,103550.0,2.17597609]
[1746775061529,0.1955444,103560.0,103550.0,2.28351299]
[1746775062020,0.2271444,103560.0,103550.0,2.28351299]
[1746775064325,0.00241,103560.0,103550.0,2.28351299]
[1746775064521,0.00241,103560.0,103550.0,2.39008099]
[1746775064727,0.4015308,103580.0,103570.0,0.1931157]
[1746775064931,0.4336308,103580.0,103570.0,0.56901768]
[1746775065127,0.5936308,103580.0,103570.0,0.66191768]
[1746775065331,0.7011677,103580.0,103570.0,0.23901768]
[1746775066036,0.5936308,103580.0,103570.0,0.23901768]
[1746775066236,0.5936308,103580.0,103570.0,0.26921768]
[1746775067140,0.5956308,103580.0,103570.0,0.26921768]
[1746775068141,0.5956308,103580.0,103570.0,0.23901768]
[1746775068527,0.7031677,103580.0,103570.0,0.23901768]
[1746775068732,0.5956308,103580.0,103570.0,0.23901768]
[1746775068941,0.7031677,103580.0,103570.0,0.23901768]
[1746775070241,0.7031677,103580.0,103570.0,0.24398768]
[1746775070441,0.7031677,103580.0,103570.0,0.60478768]
[1746775070943,0.7031677,103580.0,103570.0,0.38087198]
[1746775072947,0.5956308,103580.0,103570.0,0.38087198]
[1746775073240,0.7031677,103580.0,103570.0,0.38087198]
[1746775073540,0.7031677,103580.0,103570.0,0.02007198]
[1746775073735,1.0639677,103580.0,103570.0,0.02007198]
[1746775077745,1.09749512,103580.0,103570.0,0.02007198]
[1746775078834,0.9564308,103580.0,103570.0,0.02007198]
[1746775079037,1.09749512,103580.0,103570.0,0.02007198]
[1746775082653,1.09749512,103580.0,103570.0,0.00497]
[1746775084148,1.09749512,103580.0,103570.0,0.03667]
[1746775084846,0.9564308,103580.0,103570.0,0.03667]
[1746775085048,1.09749512,103580.0,103570.0,0.03667]
[1746775093555,1.09749512,103580.0,103540.0,0.96104379]
[1746775093556,0.193153,103550.0,103540.0,0.96104379]
[1746775093761,0.193153,103550.0,103540.0,0.94475189]
[1746775094054,0.225853,103550.0,103540.0,0.94475189]
[1746775094254,0.385853,103550.0,103540.0,0.95456521]
[1746775094664,0.385853,103550.0,103540.0,0.95856521]
[1746775094858,0.450453,103550.0,103540.0,1.02156521]
[1746775095257,0.290453,103550.0,103540.0,0.82840311]
[1746775095453,0.72178516,103550.0,103540.0,0.42568979]
[1746775095647,0.72178516,103550.0,103540.0,0.39368979]
[1746775096259,0.88178516,103550.0,103540.0,0.39368979]
[1746775097362,0.88178516,103550.0,103540.0,0.0349]
[1746775097851,0.88178516,103550.0,103540.0,0.0934]
[1746775098655,0.88178516,103550.0,103540.0,0.2865717]
[1746775098859,0.88178516,103550.0,103540.0,0.0934]
[1746775099055,0.88178516,103550.0,103540.0,0.2865717]
[1746775099255,0.88178516,103550.0,103540.0,0.0934]
[1746775099462,0.450453,103550.0,103540.0,0.6473717]
[1746775100755,0.52098516,103550.0,103540.0,0.6473717]
[1746775101256,0.450453,103550.0,103540.0,0.6473717]
[1746775103351,0.16,103550.0,103540.0,0.75488481]
[1746775103557,0.353153,103550.0,103540.0,0.75488481]
[1746775103857,0.16,103550.0,103540.0,1.28930081]
[1746775104058,0.16,103550.0,103540.0,1.1817877]
[1746775104261,0.241418,103560.0,103550.0,0.190743]
[1746775104455,0.241418,103560.0,103550.0,0.647643]
[1746775104456,0.1931344,103560.0,103550.0,0.647643]
[1746775105067,0.4357764,103570.0,103560.0,0.1931344]
[1746775105264,0.4357764,103570.0,103560.0,0.6167344]
[1746775106167,0.5957764,103570.0,103560.0,0.6167344]
[1746775107065,0.5967764,103570.0,103560.0,0.6167344]
[1746775110073,0.5967764,103570.0,103560.0,0.6481344]
[1746775110872,0.70428951,103570.0,103560.0,0.0302]
[1746775111067,0.0965714,103560.0,103540.0,0.788384]
[1746775111276,0.51190641,103560.0,103550.0,0.224553]
[1746775111468,0.3712933,103560.0,103550.0,0.224553]
[1746775111871,0.3230058,103560.0,103550.0,0.224553]
[1746775112058,0.4830058,103560.0,103550.0,0.616653]
[1746775114774,0.1933,103560.0,103550.0,0.72416611]
[1746775114978,0.16,103560.0,103550.0,0.75686611]
[1746775115167,0.2725099,103570.0,103560.0,0.1931344]
[1746775115472,0.2725099,103570.0,103560.0,0.6192344]
[1746775115671,0.2725099,103570.0,103560.0,0.6522344]
[1746775116174,0.4325099,103570.0,103560.0,0.6522344]
[1746775116772,0.4335099,103570.0,103560.0,0.6522344]
[1746775118576,0.3852157,103570.0,103560.0,0.75974751]
[1746775118777,0.1921,103570.0,103560.0,0.75974751]
[1746775119076,0.161,103570.0,103560.0,2.25974751]
[1746775119275,0.001,103570.0,103560.0,2.25974751]
[1746775119876,0.001,103570.0,103560.0,2.1522344]
[1746775120071,0.001,103570.0,103560.0,2.25974751]
[1746775122175,0.161,103570.0,103560.0,2.25974751]
[1746775123076,0.161,103570.0,103560.0,2.1522344]
[1746775123271,0.161,103570.0,103560.0,2.25974751]
[1746775123674,0.1933,103570.0,103560.0,2.25974751]
[1746775125773,0.3864157,103570.0,103560.0,2.25974751]
[1746775125969,0.3864157,103570.0,103560.0,2.1195344]
[1746775126171,0.3864157,103570.0,103560.0,0.6195344]
[1746775126877,0.3864157,103570.0,103560.0,0.72704751]
[1746775127075,0.3864157,103570.0,103560.0,0.75834751]
[1746775127274,0.3864157,103570.0,103560.0,0.6508344]
[1746775127471,0.3864157,103570.0,103560.0,0.75834751]
[1746775127677,0.4184157,103570.0,103560.0,0.75834751]
[1746775129680,0.1933,103570.0,103560.0,0.75834751]
[1746775129874,0.161,103570.0,103560.0,0.75834751]
[1746775130074,0.001,103570.0,103560.0,0.76834751]
[1746775130279,0.0325,103570.0,103560.0,0.76834751]
[1746775131783,0.064,103570.0,103560.0,0.76834751]
[1746775132186,0.224,103570.0,103560.0,0.76834751]
[1746775132683,0.224,103570.0,103560.0,0.75834751]
[1746775133275,0.001,103570.0,103560.0,1.02241662]
[1746775133675,0.001,103570.0,103560.0,0.91490351]
[1746775133875,0.001,103570.0,103560.0,0.8073904]
[1746775134073,0.001,103570.0,103560.0,0.91490351]
[1746775134275,0.003,103590.0,103560.0,0.96928222]
[1746775134482,0.53408221,103640.0,103610.0,0.1930412]
[1746775134677,0.36626751,103640.0,103630.0,0.30051701]
[1746775134875,0.43066751,103640.0,103630.0,0.20267314]
[1746775135074,0.23768221,103640.0,103630.0,0.42537314]
[1746775135274,0.17328221,103640.0,103630.0,0.99017825]
[1746775135579,0.36626751,103640.0,103630.0,0.59316924]
[1746775135786,0.39736751,103640.0,103630.0,0.59316924]
[1746775136083,0.43066751,103640.0,103630.0,0.42537314]
[1746775136275,0.43066751,103640.0,103630.0,0.78617314]
[1746775136475,0.43066751,103640.0,103630.0,0.42537314]
[1746775136675,0.43166751,103640.0,103630.0,0.75417314]
[1746775136874,0.43166751,103640.0,103630.0,0.5515]
[1746775137071,0.53918062,103640.0,103630.0,0.1907]
[1746775137388,0.53918062,103640.0,103630.0,0.5515]
[1746775137972,0.53918062,103640.0,103630.0,0.7445039]
[1746775139283,0.23868221,103640.0,103630.0,0.7445039]
[1746775139473,0.17428221,103640.0,103630.0,0.7774039]
[1746775139694,0.17428221,103640.0,103630.0,0.8391039]
[1746775139983,0.002,103640.0,103630.0,0.9355959]
[1746775140180,0.002,103640.0,103630.0,1.0575028]
[1746775140989,0.002,103640.0,103630.0,2.5575028]
[1746775141682,0.002,103640.0,103630.0,2.6275028]
[1746775141876,0.002,103640.0,103630.0,2.6375028]
[1746775142077,1e-07,103640.0,103630.0,3.1575028]
[1746775145888,1e-07,103640.0,103630.0,1.6575028]
[1746775146287,1e-07,103640.0,103630.0,1.5024628]
[1746775146484,1e-07,103640.0,103630.0,3.0024628]
[1746775147894,0.06200206,103650.0,103640.0,0.1929853]
[1746775148088,0.06200206,103650.0,103640.0,0.93379841]
[1746775148492,0.06200206,103650.0,103640.0,0.9623253]
[1746775149092,0.25496876,103650.0,103640.0,0.7954853]
[1746775149292,0.06200206,103650.0,103640.0,0.7954853]
[1746775149494,0.25496876,103650.0,103640.0,0.7954853]
[1746775149795,0.06200206,103650.0,103640.0,0.7954853]
[1746775150296,0.06200206,103650.0,103640.0,0.7964853]
[1746775150593,0.09360206,103650.0,103640.0,0.7964853]
[1746775150795,0.09360206,103650.0,103640.0,0.90399841]
[1746775150981,0.39408187,103650.0,103640.0,0.3539853]
[1746775151186,0.39408187,103650.0,103640.0,0.1939853]
[1746775151385,0.28656876,103650.0,103640.0,0.1939853]
[1746775151889,0.28656876,103650.0,103640.0,0.66229841]
[1746775152089,0.09360206,103650.0,103640.0,0.85339841]
[1746775152487,0.09360206,103650.0,103640.0,0.88399841]
[1746775152889,0.09360206,103650.0,103640.0,0.89024725]
[1746775153091,0.09360206,103650.0,103640.0,0.891214]
[1746775153795,0.28656876,103650.0,103640.0,0.891214]
[1746775154090,0.09360206,103650.0,103640.0,0.891214]
[1746775154487,0.09360206,103650.0,103640.0,0.991214]
[1746775154698,0.09360206,103650.0,103640.0,1.041214]
[1746775154891,0.09360206,103650.0,103640.0,1.071214]
[1746775155093,0.02940206,103650.0,103640.0,1.071214]
[1746775155588,0.06220206,103650.0,103640.0,1.071214]
[1746775156188,0.02940206,103650.0,103640.0,1.071214]
[1746775156685,0.02940206,103650.0,103640.0,1.31872711]
[1746775156886,0.02940206,103650.0,103640.0,2.81872711]
[1746775157091,0.02940206,103650.0,103640.0,2.601214]
[1746775158098,0.02940206,103650.0,103640.0,2.84872711]
[1746775159293,0.00179546,103650.0,103640.0,2.84872711]
[1746775159601,0.0989,103660.0,103650.0,0.1929667]
[1746775159791,0.0989,103660.0,103650.0,1.00169292]
[1746775159991,0.0989,103660.0,103650.0,1.00890851]
[1746775160298,0.0989,103660.0,103650.0,1.19960851]
[1746775160986,0.0989,103660.0,103650.0,0.98458229]
[1746775161192,0.003,103660.0,103650.0,1.33360851]
[1746775161499,0.0632,103660.0,103650.0,1.33360851]
[1746775162098,0.0632,103660.0,103650.0,1.46872851]
[1746775162399,0.0632,103660.0,103650.0,2.96872851]
[1746775163395,0.0313,103670.0,103660.0,0.192948]
[1746775163602,0.003,103690.0,103680.0,0.1929108]
[1746775163899,0.003,103690.0,103680.0,0.76873702]
[1746775164199,0.003,103690.0,103680.0,1.13141261]